Cogmind - Beta 14 @@@ ROGUE MODE // 2024.09.12 @ 21:15:11 Player: Maulwurf Result: Destroyed by D-53 Grenadier with Mini Grenade Launcher Performance ------------- Evolutions (0) 0 Regions Visited (4) 800 Robots Destroyed (22) 110 Value Destroyed (470) 470 Prototype IDs (0) 0 Alien Tech Used (0) 0 Bonus (0) 0 TOTAL SCORE: 1380 Bonus ------- None Cogmind --------- Core Integrity 0/250 Matter 275/300 Energy 100/100 System Corruption 0% Temperature Cool (0) Movement Core (400) Ox7 Location -9/Mines Parts ------- > --- POWER (1) -------- (None) > --- PROPULSION (2) --- (None) > --- UTILITY (2) ------ Large Storage Unit Improved Terrain Scanner > --- WEAPON (2) ------- Hammer > --- INVENTORY (15) --- Light Treads Light Treads Small Storage Unit Medium Storage Unit Small Battery (100) Improved Terrain Scanner Bomb Drone Bay Particle Gun Light Assault Rifle Peak State ------------ > --- POWER ------------ Light Ion Engine > --- PROPULSION ------- Light Treads Light Treads > --- UTILITY ---------- Large Storage Unit Improved Terrain Scanner > --- WEAPON ----------- Light Assault Rifle Hammer > --- INVENTORY -------- Light Ion Engine Light Treads Light Treads Light Treads Light Treads Aluminum Leg Aluminum Leg Small Storage Unit Medium Storage Unit Visual Processing Unit Improved Terrain Scanner Bomb Drone Bay Particle Gun Mining Laser [Rating: 12] Favorites ----------- Power Light Ion Engine Engine Light Ion Engine Propulsion Light Treads Treads Light Treads Utility Large Storage Unit Device Improved Terrain Scanner Storage Large Storage Unit Processor Visual Processing Unit Weapon Hammer Energy Gun EM Pulse Gun Ballistic Gun Light Assault Rifle Special Weapon Mining Laser Impact Weapon Hammer Build | -11 -10 -10 -10 -9 ------- Run | Yrd Mat Min Exi Min Slots Evolved . | . . . . . Power . | . . . . . Propulsion . | . . . . . Utility . | . . . . . Weapon . | . . . . . Parts Attached 21 | 8 5 3 2 3 Power 4 | 2 . 1 . 1 Engine 4 | 2 . 1 . 1 Core . | . . . . . Reactor . | . . . . . Propulsion 5 | 2 1 . . 2 Treads 5 | 2 1 . . 2 Leg . | . . . . . Wheel . | . . . . . Hover . | . . . . . Flight . | . . . . . Utility 6 | 2 2 1 1 . Device 3 | 1 1 . 1 . Storage 2 | 1 1 . . . Processor 1 | . . 1 . . Hackware . | . . . . . Protection . | . . . . . Artifact . | . . . . . Weapon 6 | 2 2 1 1 . Energy Gun 3 | 2 1 . . . Energy Cannon . | . . . . . Ballistic Gun 1 | . 1 . . . Ballistic Cannon . | . . . . . Launcher . | . . . . . Special Weapon 1 | . . . 1 . Impact Weapon 1 | . . 1 . . Slashing Weapon . | . . . . . Piercing Weapon . | . . . . . Special Melee Weapon . | . . . . . Unidentified Prototypes . | . . . . . Parts Lost 10 | . 1 2 . 7 Power 3 | . . 1 . 2 Propulsion 4 | . . . . 4 Utility 1 | . 1 . . . Weapon 2 | . . 1 . 1 Highest Loss Streak 7 | . 1 2 . 7 To Critical Strikes . | . . . . . Average Slot Usage (%) 98 | . 96 99 100 82 Engine 13 | . 14 13 14 8 Treads 27 | . 26 28 28 22 Device 12 | . 13 14 11 14 Storage 14 | . 14 14 14 14 Processor 1 | . . . 2 . Energy Gun 3 | . 22 . . . Ballistic Gun 6 | . 4 14 2 . Special Weapon 6 | . . . 11 8 Impact Weapon 11 | . . 13 14 14 Peak Build Rating 12 | 7 10 12 11 11 Average Rating 10 | 4 7 11 10 10 On Entrance 7 | . 7 10 11 11 Naked Turns . | . . . . . Heaviest Build 30 | 15 30 27 27 27 Greatest Support 40 | 40 40 40 40 40 Greatest Overweight (x) 4 | 4 1 . . 1 Average Overweight (x) . | 1 . . . . Largest Inventory Capacity 15 | 8 15 15 15 15 Average Capacity 14 | 7 14 15 15 15 Most Carried 15 | 6 14 15 13 13 Average Carried 12 | 4 10 14 12 11 Final Capacity 15 | 8 15 15 15 15 Final Carried 13 | 5 12 13 13 10 Class Distribution -------------------- 100% | Mutant Dominant Class ---------------- Mutant | -10/Materials Mutant | -10/Mines Mutant | -10/Exiles Mutant | -9/Mines Resources | -11 -10 -10 -10 -9 ----------- Run | Yrd Mat Min Exi Min Matter Collected 360 | 178 156 26 . . Remotely . | . . . . . Salvage Created 640 | 49 308 283 . . Parts 34 | 8 16 10 . . Haulers Intercepted . | . . . . . Recyclers Shooed 1 | . 1 . . . Parts Field Recycled . | . . . . . Retrieved Matter . | . . . . . Parts Self-Destructed . | . . . . . Prevented . | . . . . . Kills | -11 -10 -10 -10 -9 ------- Run | Yrd Mat Min Exi Min Combat Hostiles Destroyed 12 | . 8 4 . . Melee 2 | . . 2 . . Guns 9 | . 8 1 . . Classes Destroyed 7 | 1 3 3 . . Worker 1 | . . 1 . . Builder 1 | . . 1 . . Tunneler 4 | 3 . 1 . . Recycler 1 | . . 1 . . Watcher 3 | . 3 . . . Swarmer 3 | . 3 . . . Grunt 9 | . 5 4 . . Best Kill Streak 4 | 2 4 3 . . Combat Bots Only 4 | . 4 1 . . Max Kills in Single Turn 2 | 2 1 1 . . Gunslinging . | . . . . . Exploded . | . . . . . Melee 1 | . . 1 . . Uniques/NPCs Destroyed . | . . . . . Combat | -11 -10 -10 -10 -9 -------- Run | Yrd Mat Min Exi Min Hostile Shots Fired 105 | . 42 34 . 29 Missed 21 | . 11 6 . 4 Damage Taken 1428 | . 303 331 . 794 Core 258 | . 71 57 . 130 Absorbed by Shields . | . . . . . Core Remaining (%) 100 | 100 . . . . Volleys Fired 54 | 2 37 9 6 . Largest 2 | 2 2 2 1 . Hottest 100 | 90 90 60 100 . Shots Fired 96 | 4 74 12 6 . Gun 90 | 4 74 12 . . Cannon . | . . . . . Launcher . | . . . . . Special 6 | . . . 6 . Kinetic 29 | . 20 9 . . Thermal 25 | 2 17 . 6 . Explosive . | . . . . . Electromagnetic 42 | 2 37 3 . . Robot Hit Streak 5 | 2 5 5 . . Robot Miss Streak 3 | . 3 1 . . Penetration Max . | . . . . . Secondary Targets 1 | . 1 . . . Max Gunslinging Chain 1 | . 1 . . . Shots Hit Robots 59 | 2 38 19 . . Core Hits 25 | 3 17 5 . . Critical Kills 1 | . . 1 . . Critical Parts Destroyed 2 | . . 2 . . Critical Strikes 3 | . . 3 . . Smash 3 | . . 3 . . Melee Attacks 15 | . . 14 . 1 Impact 15 | . . 14 . 1 Slashing . | . . . . . Piercing . | . . . . . Sneak Attacks 4 | . . 4 . . Combat Hostiles . | . . . . . Follow-up Attacks . | . . . . . Damage Inflicted 1146 | 41 608 497 . . Guns 630 | 41 521 68 . . Cannons . | . . . . . Explosions 81 | . 81 . . . Melee 429 | . . 429 . . Ramming 6 | . 6 . . . Kinetic 127 | . 71 56 . . Thermal 217 | 13 204 . . . Explosive . | . . . . . Electromagnetic 367 | 28 327 12 . . Impact 429 | . . 429 . . Slashing . | . . . . . Piercing . | . . . . . Highest Corruption . | . . . . . Average Corruption . | . . . . . Corruption Purged . | . . . . . Corruption Blocked . | . . . . . Overload Shots . | . . . . . Overflow Damage 209 | . 17 192 . . Projectiles . | . . . . . Explosions 17 | . 17 . . . Melee 192 | . . 192 . . Knockbacks 1 | . . 1 . . Impact 1 | . . 1 . . Kinetic . | . . . . . Secondary . | . . . . . Self-Inflicted Damage . | . . . . . Shots . | . . . . . Rammed 3 | . 3 . . . Targets Rammed 3 | . 3 . . . Kicked . | . . . . . Crushed . | . . . . . Highest Temperature 226 | 30 226 60 40 . Average Temperature 65 | 18 83 25 14 . Received Heat Transfer 363 | . 108 204 . 51 Siege Activations . | . . . . . Robots Corrupted 2 | . . 2 . . Combat Hostiles 1 | . . 1 . . Parts Fried 10 | . 4 6 . . Impact Corruptions 7 | . . 7 . . Robots Melted . | . . . . . Combat Hostiles . | . . . . . Parts Melted . | . . . . . Heat Transferred 507 | 37 470 . . . Parts Sabotaged . | . . . . . Parts Stolen . | . . . . . Parts Stripped . | . . . . . Power Chain Reactions 2 | . 2 . . . Alert | -11 -10 -10 -10 -9 ------- Run | Yrd Mat Min Exi Min Peak Influence 322 | 15 322 215 . . Initial 125 | . 9 125 . . Average 115 | 5 179 110 . . Maximum Alert Level 1 | . 1 1 . . Low Security (%) 78 | 100 46 88 . 100 Level 1 21 | . 53 11 . . Level 2 . | . . . . . Level 3 . | . . . . . Level 4 . | . . . . . Level 5 . | . . . . . High Security . | . . . . . Max Security . | . . . . . Squads Dispatched 2 | . 2 . . . Investigation . | . . . . . Extermination . | . . . . . Reinforcement 2 | . 2 . . . Assault . | . . . . . Garrison . | . . . . . Intercept . | . . . . . Searches Triggered . | . . . . . Construction Impeded . | . . . . . Haulers Reinforced . | . . . . . Active Scanning Responses . | . . . . . Cargo Convoy Interrupts . | . . . . . Stealth | -11 -10 -10 -10 -9 --------- Run | Yrd Mat Min Exi Min Distress Signals 3 | . 3 . . . Communications Jammed . | . . . . . Distress Signals . | . . . . . Times Spotted 24 | . 14 4 . 6 Peak Tracking Total 5 | . 5 2 . 3 Tactical Retreats 1 | . 1 . . . Traps | -11 -10 -10 -10 -9 ------- Run | Yrd Mat Min Exi Min Traps Triggered 1 | . 1 . . . Indirectly . | . . . . . Trap Hack Attempts . | . . . . . Triggered . | . . . . . Disarmed . | . . . . . Reprogrammed . | . . . . . Reused . | . . . . . Traps Extracted . | . . . . . Installed . | . . . . . Triggered . | . . . . . Machines | -11 -10 -10 -10 -9 ---------- Run | Yrd Mat Min Exi Min Machines Disabled 2 | . 2 . . . Max in Single Turn 1 | . 1 . . . Machines Repaired . | . . . . . Machines Dismantled . | . . . . . Machines Sabotaged . | . . . . . Overloaded Fab Kills . | . . . . . Hacking | -11 -10 -10 -10 -9 --------- Run | Yrd Mat Min Exi Min Machines Accessed 3 | . 1 1 1 . Terminals 1 | . 1 . . . Fabricators . | . . . . . Repair Stations . | . . . . . Recycling Units . | . . . . . Scanalyzers . | . . . . . Garrison Access . | . . . . . Total Hacks 4 | . 2 1 1 . Successful 3 | . 1 1 1 . Failed 1 | . 1 . . . Catastrophic . | . . . . . Database Lockouts . | . . . . . Manual . | . . . . . Terminals 2 | . 2 . . . Fabricators . | . . . . . Repair Stations . | . . . . . Recycling Units . | . . . . . Scanalyzers . | . . . . . Garrison Access . | . . . . . Terminal Hacks 3 | . 1 1 1 . Record 1 | . . . 1 . Open Door 1 | . . 1 . . Security Status 1 | . 1 . . . Fabricator Hacks . | . . . . . Repair Station Hacks . | . . . . . Recycling Unit Hacks . | . . . . . Scanalyzer . | . . . . . Garrison Access Hacks . | . . . . . Unauthorized Hacks . | . . . . . Terminals . | . . . . . Fabricators . | . . . . . Repair Stations . | . . . . . Recycling Units . | . . . . . Scanalyzers . | . . . . . Garrison Access . | . . . . . Data Cores Recovered . | . . . . . Used . | . . . . . Hacking Detections 1 | . 1 . . . Full Trace Events . | . . . . . Feedback Events . | . . . . . Feedback Blocked . | . . . . . Robot Schematics Acquired . | . . . . . Robots Built . | . . . . . Authchips . | . . . . . Time . | . . . . . Total Robot Build Rating . | . . . . . Part Schematics Acquired . | . . . . . Parts Built . | . . . . . Authchips . | . . . . . Time . | . . . . . Total Part Build Rating . | . . . . . Parts Repaired . | . . . . . Time . | . . . . . Parts Recycled . | . . . . . Recycled Matter . | . . . . . Retrieved Matter . | . . . . . Retrieved Components . | . . . . . Parts Scanalyzed . | . . . . . Part Schematics Acquired . | . . . . . Parts Damaged . | . . . . . Bothacking | -11 -10 -10 -10 -9 ------------ Run | Yrd Mat Min Exi Min Used RIF Installer . | . . . . . Robots Hacked . | . . . . . Non-combat . | . . . . . Combat . | . . . . . Robot Hacks Applied . | . . . . . Relay Couplers Released . | . . . . . Fabnet Peak Effective % . | . . . . . Robots Rewired . | . . . . . Allies Hacked . | . . . . . Hacks Repelled . | . . . . . Allies | -11 -10 -10 -10 -9 -------- Run | Yrd Mat Min Exi Min Total Allies . | . . . . . Largest Group . | . . . . . Highest-Rated Group . | . . . . . Highest-Rated Ally . | . . . . . Total Orders . | . . . . . Ally Attacks . | . . . . . Total Damage . | . . . . . Kills . | . . . . . Allies Corrupted . | . . . . . Allies Melted . | . . . . . Intel | -11 -10 -10 -10 -9 ------- Run | Yrd Mat Min Exi Min Robot Analysis Total . | . . . . . Derelict Logs Recovered 3 | . . 3 . . Drone Launches . | . . . . . Drone Recoveries . | . . . . . Exploration | -11 -10 -10 -10 -9 ------------- Run | Yrd Mat Min Exi Min Turns Passed 2569 | 125 339 673 1391 41 Spaces Moved 1396 | 61 118 373 823 21 Core 31 | 31 . . . . Treads 1365 | 30 118 373 823 21 Legs . | . . . . . Wheels . | . . . . . Hover . | . . . . . Flight . | . . . . . Fastest Speed 50 | 50 160 160 160 160 Average Speed 160 | 163 162 160 160 167 Slowest Speed 250 | 250 240 160 160 240 Overloaded Moves . | . . . . . Propulsion Burnouts . | . . . . . Robots Hopped . | . . . . . Cave-ins Triggered . | . . . . . Exploration Rate (%) 43 | 6 37 69 92 11 Regions Visited 4 Branch Regions 3 Pre-discovered Areas 1 | . . 1 . . Known Exits Taken . | . . . . . Unknown Exits Taken 4 | 1 1 1 1 . Scrap Searched . | . . . . . Spaces Dug 4 | . . . 4 . Terrain Destroyed 12 | . 8 . 4 . Melee . | . . . . . Projectile 4 | . . . 4 . AOE 8 | . 8 . . . Terrain Rammed . | . . . . . Walls Destroyed . | . . . . . Machines Disabled . | . . . . . Actions | -11 -10 -10 -10 -9 --------- Run | Yrd Mat Min Exi Min Total 1597 | 82 194 416 880 25 Wait 65 | . 21 11 33 . Move 1392 | 60 117 372 822 21 Hop . | . . . . . Pick Up 28 | 12 11 4 1 . Fast Attach . | . . . . . Attach 19 | 7 4 3 2 3 Detach 3 | . . 1 2 . Swap 2 | 1 1 . . . Drop 2 | . . 2 . . Fire 54 | 2 37 9 6 . Melee 15 | . . 14 . 1 Ram . | . . . . . Kick . | . . . . . Crush 3 | . 3 . . . Escape Stasis . | . . . . . Rewire 14 | . . . 14 . Trap . | . . . . . Miscellaneous . | . . . . . Route ------- -11/Scrapyard -10/Materials -10/Mines -10/Exiles (discovered 2 exits: [*Min x2]) -9/Mines History --------- Turn | Location | Event 9 | -11/Scrapyard | Discovered new exit (range 16) 126 | -11/Scrapyard | Entered Materials 315 | -10/Materials | Build established: Mutant 445 | -10/Materials | Discovered new exit (range 8) 465 | -10/Materials | Entered Mines 619 | -10/Mines | Found the Drone Emporium 630 | -10/Mines | Found Prototype Device 790 | -10/Mines | Core integrity fell below 50% 833 | -10/Mines | Learned location of Zion (-7) 1086 | -10/Mines | Learned Materials emergency access door positions 1126 | -10/Mines | Deemed a non-threat by the Exiles lab entrance 1127 | -10/Mines | Discovered new exit (range 5) 1138 | -10/Mines | Entered Exiles 1167 | -10/Exiles | Discovered new exit (range 14) 1191 | -10/Exiles | Met 8R-AWN 1237 | -10/Exiles | Met EX-HEX 1323 | -10/Exiles | Met EX-BIN 1524 | -10/Exiles | Met EX-DEC 1665 | -10/Exiles | Discovered new exit (range 11) 1789 | -10/Exiles | Visited The Gauntlet 2529 | -10/Exiles | Entered Mines 2530 | -9/Mines | Assembled infested the area 2535 | -9/Mines | Assisted by a Guerilla fighting off Assembled 2563 | -9/Mines | Received a Rocket Launcher from a helpful Derelict 2563 | -9/Mines | Core integrity fell below 20% 2570 | -9/Mines | Destroyed by D-53 Grenadier with Mini Grenade Launcher Last Messages --------------- the wall? Done." 02561_ R-06 Scavenger collects Lgt. Nuclear Core. 02562_ DW-8Y3(g): "Need a small hole in the wall? Leave that to the mining laser wimps, I say!" 02562_ Lgt. Ion Engine destroyed. 02563_ DW-8Y3(g): "Would you like a rocket launcher? I know I would if I were you, so I'm going to lend you mine." 02563_ DW-8Y3(g) slips back into the shadows. 02563_ The unstable cave ceiling collapses. 02564_ HV Slug penetrates Earth. 02564_ HV Slug penetrates D-53 Grenadier. 02564_ D-53 Grenadier suffers critical hit (Destroy). 02564_ D-53 Grenadier destroyed. 02565_ Lgt. Treads destroyed. 02565_ T-07 Excavator destroyed. 02566_ HV Slug penetrates D-53 Grenadier. 02566_ D-53 Grenadier suffers critical hit (Destroy). 02568_ HV Slug penetrates Wall. 02568_ Lgt. Treads destroyed. 02570_ The unstable cave ceiling collapses. Map ----- +----------------------------------------------------+ | | | | | | | | | | | | | | | | | | | | | | | | | | | | | | | | | ?????????#?????????????#?????????????????????????? | | ???????????#?????????????????????????????????????? | | ?????????### ########?????????????????#??????????? | | ??????????# ;# ### ####????????????#???????????? | | ???????????#;$ # ###??????????????????????? | | ??????????## ###????????????????????? | | ???????#?# % % #?????#??????????????? | | ###### ! d ### ##?????????????? | | ? "%" ]% #?????????????? | | ????????### =t @] #?????????????? | | ???? ?????# =# #??????????????? | | ??????????# ! #??????????????? | | ??????????## # ## ##??????????????? | | ???????????# ####a ##?? #???????????????? | | ????????###=""# ##??# ######?????#???????????????? | | ????????# !%* #??# #??????????????????????????? | | ????????#!%* % #??# #??????????????????????????? | | ????????# %! #??# ##?????????????????????????? | | ???????#"%= " " #?? #????#?????????????????????? | | ??????? #%% """ ##?###?#????????????????????????? | | ??????### """ #???????????????????????????????? | | ????????# #? ?????????????????????????????? | | ????????###########??????????#???????????????????? | | ?????????????????????????????????????????????????? | | ??????##????????? ???????????????????????????????? | | ?????????????????????????????????????????????????? | | ?????????????????????????????????????????????????? | | ?????????????????????????????????????????????????? | | ?????????????????????????????????????????????????? | | ?????????????????????????????????????????????????? | | ?????????????????????????????????????????????????? | | ?????????????????????????????????????????????????? | | ?????????????????????????????????????????????????? | | ?????????????????????????????????????????????????? | +----------------------------------------------------+ Best States ------------- Heat Dissipation 25 Energy Generation 10 Energy Capacity 250 Matter Stores 300 Matter Capacity 300 Sight Range 18 Terrain Scan Range 16 Terrain Scan Density 10 Evasion (%) 50 Recoil Reduction 2 Item Schematics ----------------- None Robot Schematics ------------------ None Fabricated ------------ Nothing Alien Tech Used ----------------- None Achievements -------------- None Challenges ------------ None Game ------ Seed RelayChromaticBeam Manual? 0 Play Time 00:25:16 Cumulative 9.2 hours Start 2024.09.12 @ 20:30:26 End 2024.09.12 @ 21:15:11 Sessions 1 Manual Loads 0 Difficulty Rogue Special Mode None Game No. 22 Rogue 22 Adventurer 0 Explorer 0 Win Type - Total 0 Types 0/0/0/0/0/0/0/0/0 Lore% 10 Gallery% 8 Achievement% 14 Wizard Run 0 Options --------- Layout 0 ASCII 0 Keyboard 1 Movement Numpad Keybinds 0 Fullscreen 1 Font 18/SmallcapsGlow Map View 76x50 Zoom Use 0% Tactical HUD 1 Map Filters NONE Filters NONE Steam 1 RUN: 224526a0-28e9-4025-83e3-93529c3d5a2a